Workbook

Sheet Instructions
A2: Column C | B2: Select the source of the TLV or OEL desired from the drop down menu. NOTE: If there is no value for the source selected, the cell will turn red. In this case, it is recommended the group guidance value be used if provided by the source. For example, the German AGS does not have an individal TLV value for cyclopentane. In this case, it is recommended the German AGS C5 - C6 Aliphatics Group Guidance Value, GGV, (1500 mg/m3) be used for cyclopentane (enter the % fraction of cyclopentane in the GGV row). If the source selected does not have an individual or GGV, it is recommended the HSPA GGV be used.
A3: Column D | B3: DO NOT MODIFY. The TLV or OEL for the source selected will automatically populate Column D. NOTE: If a Company Modified or Derived OEL is to be used, enter the value for the chemical in the appropriate row in the "OEL and TLV Values" spreadsheet.
A4: Column E | B4: Enter the Liquid Fraction (%) for the individual chemical or GGV.
A5: Column F | B5: DO NOT MODIFY. Spreadsheet automatically calculates Reciprocal Calculation (Fa/OELa).
A6: "Preferred Source" Button (Columns H-J) | B6: The "Preferred Source" button will set all TLV or OEL values to one source (e.g. all will be set to ACGIH). Individual chemicals or GGVS can be modified as needed. NOTE: The "Preferred Source" button will NOT reset Liquid Fraction values.
A7: "Reset" Button (Columns H-J) | B7: The "Reset" button will set all TLV or OEL values to the ACGIH TLVs, delete all Liquid Fraction values, and delete the MW data (Row 40, Column E-F). NOTE: Reset button will NOT delete any Company Specific Values entered.
A8: Additional Chemical or Company Specific TLVs or OELs, if Applicable (Rows 33-37) | B8: If you want to add a chemical TLV or OEL that is not covered and the GGV is not appropriate, individual information can be added here. Information entered here will be included in the RCP OEL calculation automatically.
A9: Total Component (%) (Row 39) | B9: DO NOT MODIFY. Total Component (%) will automatically populate NOTE: This number should be 100%
A10: MW data (Row 40, Column E-F) | B10: Enter the Molecular Weight (MW) of the product if ppm (at standard room and temperature) is desired.
A11: Calculated RCP OEL Row 43 | B11: DO NOT MODIFY. The spreadsheet will automatically calculate the RCP OEL from the data entered.
A12: ACGIH Rounded RCP OEL Row 44 | B12: DO NOT MODIFY. The spreadsheet will automatically calculate the RCP OEL using the ACGIH Rounding Rules. NOTE: If the calculated RCP OEL is less than 12.5 mg/m3, the number will not be rounded and will be the actual calculated RCP OEL instead. (e.g. 13 mg/m3 will be rounded to 25 mg/ m3, but 11mg/m3 will remain 11 mg/m3).
A13: OEL and TLV Values Spreadsheet | B13: This spreadsheet contains the OEL and TLV data for various jurisdictions and authoritative bodies. NOTE: The only values you should need to change are the "Company Modified or Derived OEL " Values (if you have a company calculated OEL value).
A14: Raoult's Law Calculator | B14: This spreadsheet contains formula for calculating the ambient air concentration of a constituent of a complex solvent/blend. NOTE: Both the vapor pressure of constituent and blend/complex solvent MUST BE at the same temperature. Note also that only vapor pressures in the kPa unit are allowed at this point.

Sheet RCP Calculator
A2: Hydrocarbon Group | B2: Individual Constituents (if applicable) | C2: Source of TLV or OEL | D2: TLV / OEL (mg/m3) | E2: Liquid Fraction (%) | F2: Reciprocal Calculation (Fa/OELa) | H2: Preferred Source (Sets ALL Values to Source)
A3: C5 - C6 Aliphatics Group Guidance Value | D3: =IF('Other (DO NOT MODIFY)'!C2=1,'OEL and TLV Values'!D2)+IF('Other (DO NOT MODIFY)'!C2=2,'OEL and TLV Values'!E2)+IF('Other (DO NOT MODIFY)'!C2=3,'OEL and TLV Values'!F2)+IF('Other (DO NOT MODIFY)'!C2=4,'OEL and TLV Values'!G2)+IF('Other (DO NOT MODIFY)'!C2=5,'OEL and TLV Values'!H2)+IF('Other (DO NOT MODIFY)'!C2=6,'OEL and TLV Values'!I2)+IF('Other (DO NOT MODIFY)'!C2=7,0) -> 1500 | F3: =IF(OR(D3=0,E3=0),"",(E3/100)/D3) -> 
B4: Pentane, All Isomers | D4: =IF('Other (DO NOT MODIFY)'!C3=1,'OEL and TLV Values'!D3)+IF('Other (DO NOT MODIFY)'!C3=2,'OEL and TLV Values'!E3)+IF('Other (DO NOT MODIFY)'!C3=3,'OEL and TLV Values'!F3)+IF('Other (DO NOT MODIFY)'!C3=4,'OEL and TLV Values'!G3)+IF('Other (DO NOT MODIFY)'!C3=5,'OEL and TLV Values'!H3)+IF('Other (DO NOT MODIFY)'!C3=6,'OEL and TLV Values'!I3)+IF('Other (DO NOT MODIFY)'!C3=7,0) -> 2950 | F4: =IF(OR(D4=0,E4=0),"",(E4/100)/D4) -> 
B5: Cyclopentane | D5: =IF('Other (DO NOT MODIFY)'!C4=1,'OEL and TLV Values'!D4)+IF('Other (DO NOT MODIFY)'!C4=2,'OEL and TLV Values'!E4)+IF('Other (DO NOT MODIFY)'!C4=3,'OEL and TLV Values'!F4)+IF('Other (DO NOT MODIFY)'!C4=4,'OEL and TLV Values'!G4)+IF('Other (DO NOT MODIFY)'!C4=5,'OEL and TLV Values'!H4)+IF('Other (DO NOT MODIFY)'!C4=6,'OEL and TLV Values'!I4)+IF('Other (DO NOT MODIFY)'!C4=7,0) -> 1720 | F5: =IF(OR(D5=0,E5=0),"",(E5/100)/D5) -> 
B6: Hexane, isomers, except n-hexane | D6: =IF('Other (DO NOT MODIFY)'!C5=1,'OEL and TLV Values'!D5)+IF('Other (DO NOT MODIFY)'!C5=2,'OEL and TLV Values'!E5)+IF('Other (DO NOT MODIFY)'!C5=3,'OEL and TLV Values'!F5)+IF('Other (DO NOT MODIFY)'!C5=4,'OEL and TLV Values'!G5)+IF('Other (DO NOT MODIFY)'!C5=5,'OEL and TLV Values'!H5)+IF('Other (DO NOT MODIFY)'!C5=6,'OEL and TLV Values'!I5)+IF('Other (DO NOT MODIFY)'!C5=7,0) -> 1760 | F6: =IF(OR(D6=0,E6=0),"",(E6/100)/D6) -> 
B7: Cyclohexane | D7: =IF('Other (DO NOT MODIFY)'!C6=1,'OEL and TLV Values'!D6)+IF('Other (DO NOT MODIFY)'!C6=2,'OEL and TLV Values'!E6)+IF('Other (DO NOT MODIFY)'!C6=3,'OEL and TLV Values'!F6)+IF('Other (DO NOT MODIFY)'!C6=4,'OEL and TLV Values'!G6)+IF('Other (DO NOT MODIFY)'!C6=5,'OEL and TLV Values'!H6)+IF('Other (DO NOT MODIFY)'!C6=6,'OEL and TLV Values'!I6)+IF('Other (DO NOT MODIFY)'!C6=7,0) -> 350
B8: n-Hexane | D8: =IF('Other (DO NOT MODIFY)'!C7=1,'OEL and TLV Values'!D7)+IF('Other (DO NOT MODIFY)'!C7=2,'OEL and TLV Values'!E7)+IF('Other (DO NOT MODIFY)'!C7=3,'OEL and TLV Values'!F7)+IF('Other (DO NOT MODIFY)'!C7=4,'OEL and TLV Values'!G7)+IF('Other (DO NOT MODIFY)'!C7=5,'OEL and TLV Values'!H7)+IF('Other (DO NOT MODIFY)'!C7=6,'OEL and TLV Values'!I7)+IF('Other (DO NOT MODIFY)'!C7=7,0) -> 176
A9: C7 - C8 Aliphatics Group Guidance Value | D9: =IF('Other (DO NOT MODIFY)'!C8=1,'OEL and TLV Values'!D8)+IF('Other (DO NOT MODIFY)'!C8=2,'OEL and TLV Values'!E8)+IF('Other (DO NOT MODIFY)'!C8=3,'OEL and TLV Values'!F8)+IF('Other (DO NOT MODIFY)'!C8=4,'OEL and TLV Values'!G8)+IF('Other (DO NOT MODIFY)'!C8=5,'OEL and TLV Values'!H8)+IF('Other (DO NOT MODIFY)'!C8=6,'OEL and TLV Values'!I8)+IF('Other (DO NOT MODIFY)'!C8=7,0) -> 1500
B10: Heptane, all isomers | D10: =IF('Other (DO NOT MODIFY)'!C9=1,'OEL and TLV Values'!D9)+IF('Other (DO NOT MODIFY)'!C9=2,'OEL and TLV Values'!E9)+IF('Other (DO NOT MODIFY)'!C9=3,'OEL and TLV Values'!F9)+IF('Other (DO NOT MODIFY)'!C9=4,'OEL and TLV Values'!G9)+IF('Other (DO NOT MODIFY)'!C9=5,'OEL and TLV Values'!H9)+IF('Other (DO NOT MODIFY)'!C9=6,'OEL and TLV Values'!I9)+IF('Other (DO NOT MODIFY)'!C9=7,0) -> 1640
B11: Methyl cyclohexane | D11: =IF('Other (DO NOT MODIFY)'!C10=1,'OEL and TLV Values'!D10)+IF('Other (DO NOT MODIFY)'!C10=2,'OEL and TLV Values'!E10)+IF('Other (DO NOT MODIFY)'!C10=3,'OEL and TLV Values'!F10)+IF('Other (DO NOT MODIFY)'!C10=4,'OEL and TLV Values'!G10)+IF('Other (DO NOT MODIFY)'!C10=5,'OEL and TLV Values'!H10)+IF('Other (DO NOT MODIFY)'!C10=6,'OEL and TLV Values'!I10)+IF('Other (DO NOT MODIFY)'!C10=7,0) -> 1610
B12: Octane, all isomers | D12: =IF('Other (DO NOT MODIFY)'!C11=1,'OEL and TLV Values'!D11)+IF('Other (DO NOT MODIFY)'!C11=2,'OEL and TLV Values'!E11)+IF('Other (DO NOT MODIFY)'!C11=3,'OEL and TLV Values'!F11)+IF('Other (DO NOT MODIFY)'!C11=4,'OEL and TLV Values'!G11)+IF('Other (DO NOT MODIFY)'!C11=5,'OEL and TLV Values'!H11)+IF('Other (DO NOT MODIFY)'!C11=6,'OEL and TLV Values'!I11)+IF('Other (DO NOT MODIFY)'!C11=7,0) -> 1401
A13: C9 - C15 Aliphatics Group Guidance Value | D13: =IF('Other (DO NOT MODIFY)'!C12=1,'OEL and TLV Values'!D12)+IF('Other (DO NOT MODIFY)'!C12=2,'OEL and TLV Values'!E12)+IF('Other (DO NOT MODIFY)'!C12=3,'OEL and TLV Values'!F12)+IF('Other (DO NOT MODIFY)'!C12=4,'OEL and TLV Values'!G12)+IF('Other (DO NOT MODIFY)'!C12=5,'OEL and TLV Values'!H12)+IF('Other (DO NOT MODIFY)'!C12=6,'OEL and TLV Values'!I12)+IF('Other (DO NOT MODIFY)'!C12=7,0) -> 1200
B14: n-Nonane | D14: =IF('Other (DO NOT MODIFY)'!C13=1,'OEL and TLV Values'!D13)+IF('Other (DO NOT MODIFY)'!C13=2,'OEL and TLV Values'!E13)+IF('Other (DO NOT MODIFY)'!C13=3,'OEL and TLV Values'!F13)+IF('Other (DO NOT MODIFY)'!C13=4,'OEL and TLV Values'!G13)+IF('Other (DO NOT MODIFY)'!C13=5,'OEL and TLV Values'!H13)+IF('Other (DO NOT MODIFY)'!C13=6,'OEL and TLV Values'!I13)+IF('Other (DO NOT MODIFY)'!C13=7,0) -> 1050
B15: Decalin | D15: =IF('Other (DO NOT MODIFY)'!C14=1,'OEL and TLV Values'!D14)+IF('Other (DO NOT MODIFY)'!C14=2,'OEL and TLV Values'!E14)+IF('Other (DO NOT MODIFY)'!C14=3,'OEL and TLV Values'!F14)+IF('Other (DO NOT MODIFY)'!C14=4,'OEL and TLV Values'!G14)+IF('Other (DO NOT MODIFY)'!C14=5,'OEL and TLV Values'!H14)+IF('Other (DO NOT MODIFY)'!C14=6,'OEL and TLV Values'!I14)+IF('Other (DO NOT MODIFY)'!C14=7,0) -> 0
A16: C7 - C8 Aromatics Group Guidance Value | D16: =IF('Other (DO NOT MODIFY)'!C15=1,'OEL and TLV Values'!D15)+IF('Other (DO NOT MODIFY)'!C15=2,'OEL and TLV Values'!E15)+IF('Other (DO NOT MODIFY)'!C15=3,'OEL and TLV Values'!F15)+IF('Other (DO NOT MODIFY)'!C15=4,'OEL and TLV Values'!G15)+IF('Other (DO NOT MODIFY)'!C15=5,'OEL and TLV Values'!H15)+IF('Other (DO NOT MODIFY)'!C15=6,'OEL and TLV Values'!I15)+IF('Other (DO NOT MODIFY)'!C15=7,0) -> 200
B17: Toluene | D17: =IF('Other (DO NOT MODIFY)'!C16=1,'OEL and TLV Values'!D16)+IF('Other (DO NOT MODIFY)'!C16=2,'OEL and TLV Values'!E16)+IF('Other (DO NOT MODIFY)'!C16=3,'OEL and TLV Values'!F16)+IF('Other (DO NOT MODIFY)'!C16=4,'OEL and TLV Values'!G16)+IF('Other (DO NOT MODIFY)'!C16=5,'OEL and TLV Values'!H16)+IF('Other (DO NOT MODIFY)'!C16=6,'OEL and TLV Values'!I16)+IF('Other (DO NOT MODIFY)'!C16=7,0) -> 75
B18: Xylene, all isomers | D18: =IF('Other (DO NOT MODIFY)'!C17=1,'OEL and TLV Values'!D17)+IF('Other (DO NOT MODIFY)'!C17=2,'OEL and TLV Values'!E17)+IF('Other (DO NOT MODIFY)'!C17=3,'OEL and TLV Values'!F17)+IF('Other (DO NOT MODIFY)'!C17=4,'OEL and TLV Values'!G17)+IF('Other (DO NOT MODIFY)'!C17=5,'OEL and TLV Values'!H17)+IF('Other (DO NOT MODIFY)'!C17=6,'OEL and TLV Values'!I17)+IF('Other (DO NOT MODIFY)'!C17=7,0) -> 434
B19: Ethyl benzene | D19: =IF('Other (DO NOT MODIFY)'!C18=1,'OEL and TLV Values'!D18)+IF('Other (DO NOT MODIFY)'!C18=2,'OEL and TLV Values'!E18)+IF('Other (DO NOT MODIFY)'!C18=3,'OEL and TLV Values'!F18)+IF('Other (DO NOT MODIFY)'!C18=4,'OEL and TLV Values'!G18)+IF('Other (DO NOT MODIFY)'!C18=5,'OEL and TLV Values'!H18)+IF('Other (DO NOT MODIFY)'!C18=6,'OEL and TLV Values'!I18)+IF('Other (DO NOT MODIFY)'!C18=7,0) -> 87
A20: C9 - C15 Aromatics Group Guidance Value | D20: =IF('Other (DO NOT MODIFY)'!C19=1,'OEL and TLV Values'!D19)+IF('Other (DO NOT MODIFY)'!C19=2,'OEL and TLV Values'!E19)+IF('Other (DO NOT MODIFY)'!C19=3,'OEL and TLV Values'!F19)+IF('Other (DO NOT MODIFY)'!C19=4,'OEL and TLV Values'!G19)+IF('Other (DO NOT MODIFY)'!C19=5,'OEL and TLV Values'!H19)+IF('Other (DO NOT MODIFY)'!C19=6,'OEL and TLV Values'!I19)+IF('Other (DO NOT MODIFY)'!C19=7,0) -> 100
B21: Trimethyl benzene, all isomers | D21: =IF('Other (DO NOT MODIFY)'!C20=1,'OEL and TLV Values'!D20)+IF('Other (DO NOT MODIFY)'!C20=2,'OEL and TLV Values'!E20)+IF('Other (DO NOT MODIFY)'!C20=3,'OEL and TLV Values'!F20)+IF('Other (DO NOT MODIFY)'!C20=4,'OEL and TLV Values'!G20)+IF('Other (DO NOT MODIFY)'!C20=5,'OEL and TLV Values'!H20)+IF('Other (DO NOT MODIFY)'!C20=6,'OEL and TLV Values'!I20)+IF('Other (DO NOT MODIFY)'!C20=7,0) -> 123
B22: Naphthalene | D22: =IF('Other (DO NOT MODIFY)'!C21=1,'OEL and TLV Values'!D21)+IF('Other (DO NOT MODIFY)'!C21=2,'OEL and TLV Values'!E21)+IF('Other (DO NOT MODIFY)'!C21=3,'OEL and TLV Values'!F21)+IF('Other (DO NOT MODIFY)'!C21=4,'OEL and TLV Values'!G21)+IF('Other (DO NOT MODIFY)'!C21=5,'OEL and TLV Values'!H21)+IF('Other (DO NOT MODIFY)'!C21=6,'OEL and TLV Values'!I21)+IF('Other (DO NOT MODIFY)'!C21=7,0) -> 52
B23: Cumene | D23: =IF('Other (DO NOT MODIFY)'!C22=1,'OEL and TLV Values'!D22)+IF('Other (DO NOT MODIFY)'!C22=2,'OEL and TLV Values'!E22)+IF('Other (DO NOT MODIFY)'!C22=3,'OEL and TLV Values'!F22)+IF('Other (DO NOT MODIFY)'!C22=4,'OEL and TLV Values'!G22)+IF('Other (DO NOT MODIFY)'!C22=5,'OEL and TLV Values'!H22)+IF('Other (DO NOT MODIFY)'!C22=6,'OEL and TLV Values'!I22)+IF('Other (DO NOT MODIFY)'!C22=7,0) -> 246
B24: 1- and 2 -methyl naphthalene | D24: =IF('Other (DO NOT MODIFY)'!C23=1,'OEL and TLV Values'!D23)+IF('Other (DO NOT MODIFY)'!C23=2,'OEL and TLV Values'!E23)+IF('Other (DO NOT MODIFY)'!C23=3,'OEL and TLV Values'!F23)+IF('Other (DO NOT MODIFY)'!C23=4,'OEL and TLV Values'!G23)+IF('Other (DO NOT MODIFY)'!C23=5,'OEL and TLV Values'!H23)+IF('Other (DO NOT MODIFY)'!C23=6,'OEL and TLV Values'!I23)+IF('Other (DO NOT MODIFY)'!C23=7,0) -> 3
B25: Diethyl benzenes (AIHA WEEL)* | D25: =IF('Other (DO NOT MODIFY)'!C24=1,'OEL and TLV Values'!D24)+IF('Other (DO NOT MODIFY)'!C24=2,'OEL and TLV Values'!E24)+IF('Other (DO NOT MODIFY)'!C24=3,'OEL and TLV Values'!F24)+IF('Other (DO NOT MODIFY)'!C24=4,'OEL and TLV Values'!G24)+IF('Other (DO NOT MODIFY)'!C24=5,'OEL and TLV Values'!H24)+IF('Other (DO NOT MODIFY)'!C24=6,'OEL and TLV Values'!I24)+IF('Other (DO NOT MODIFY)'!C24=7,0) -> 28
B26: Tetralin | D26: =IF('Other (DO NOT MODIFY)'!C25=1,'OEL and TLV Values'!D25)+IF('Other (DO NOT MODIFY)'!C25=2,'OEL and TLV Values'!E25)+IF('Other (DO NOT MODIFY)'!C25=3,'OEL and TLV Values'!F25)+IF('Other (DO NOT MODIFY)'!C25=4,'OEL and TLV Values'!G25)+IF('Other (DO NOT MODIFY)'!C25=5,'OEL and TLV Values'!H25)+IF('Other (DO NOT MODIFY)'!C25=6,'OEL and TLV Values'!I25)+IF('Other (DO NOT MODIFY)'!C25=7,0) -> 0
B27: n-butylbenzene | D27: =IF('Other (DO NOT MODIFY)'!C26=1,'OEL and TLV Values'!D26)+IF('Other (DO NOT MODIFY)'!C26=2,'OEL and TLV Values'!E26)+IF('Other (DO NOT MODIFY)'!C26=3,'OEL and TLV Values'!F26)+IF('Other (DO NOT MODIFY)'!C26=4,'OEL and TLV Values'!G26)+IF('Other (DO NOT MODIFY)'!C26=5,'OEL and TLV Values'!H26)+IF('Other (DO NOT MODIFY)'!C26=6,'OEL and TLV Values'!I26)+IF('Other (DO NOT MODIFY)'!C26=7,0) -> 0
B28: Acenaphthene | D28: =IF('Other (DO NOT MODIFY)'!C27=1,'OEL and TLV Values'!D27)+IF('Other (DO NOT MODIFY)'!C27=2,'OEL and TLV Values'!E27)+IF('Other (DO NOT MODIFY)'!C27=3,'OEL and TLV Values'!F27)+IF('Other (DO NOT MODIFY)'!C27=4,'OEL and TLV Values'!G27)+IF('Other (DO NOT MODIFY)'!C27=5,'OEL and TLV Values'!H27)+IF('Other (DO NOT MODIFY)'!C27=6,'OEL and TLV Values'!I27)+IF('Other (DO NOT MODIFY)'!C27=7,0) -> 0
B29: Acenaphthylene | D29: =IF('Other (DO NOT MODIFY)'!C28=1,'OEL and TLV Values'!D28)+IF('Other (DO NOT MODIFY)'!C28=2,'OEL and TLV Values'!E28)+IF('Other (DO NOT MODIFY)'!C28=3,'OEL and TLV Values'!F28)+IF('Other (DO NOT MODIFY)'!C28=4,'OEL and TLV Values'!G28)+IF('Other (DO NOT MODIFY)'!C28=5,'OEL and TLV Values'!H28)+IF('Other (DO NOT MODIFY)'!C28=6,'OEL and TLV Values'!I28)+IF('Other (DO NOT MODIFY)'!C28=7,0) -> 0
B30: Biphenyl | D30: =IF('Other (DO NOT MODIFY)'!C29=1,'OEL and TLV Values'!D29)+IF('Other (DO NOT MODIFY)'!C29=2,'OEL and TLV Values'!E29)+IF('Other (DO NOT MODIFY)'!C29=3,'OEL and TLV Values'!F29)+IF('Other (DO NOT MODIFY)'!C29=4,'OEL and TLV Values'!G29)+IF('Other (DO NOT MODIFY)'!C29=5,'OEL and TLV Values'!H29)+IF('Other (DO NOT MODIFY)'!C29=6,'OEL and TLV Values'!I29)+IF('Other (DO NOT MODIFY)'!C29=7,0) -> 0
B31: Indene | D31: =IF('Other (DO NOT MODIFY)'!C30=1,'OEL and TLV Values'!D30)+IF('Other (DO NOT MODIFY)'!C30=2,'OEL and TLV Values'!E30)+IF('Other (DO NOT MODIFY)'!C30=3,'OEL and TLV Values'!F30)+IF('Other (DO NOT MODIFY)'!C30=4,'OEL and TLV Values'!G30)+IF('Other (DO NOT MODIFY)'!C30=5,'OEL and TLV Values'!H30)+IF('Other (DO NOT MODIFY)'!C30=6,'OEL and TLV Values'!I30)+IF('Other (DO NOT MODIFY)'!C30=7,0) -> 0
B32: Fluorene | D32: =IF('Other (DO NOT MODIFY)'!C31=1,'OEL and TLV Values'!D31)+IF('Other (DO NOT MODIFY)'!C31=2,'OEL and TLV Values'!E31)+IF('Other (DO NOT MODIFY)'!C31=3,'OEL and TLV Values'!F31)+IF('Other (DO NOT MODIFY)'!C31=4,'OEL and TLV Values'!G31)+IF('Other (DO NOT MODIFY)'!C31=5,'OEL and TLV Values'!H31)+IF('Other (DO NOT MODIFY)'!C31=6,'OEL and TLV Values'!I31)+IF('Other (DO NOT MODIFY)'!C31=7,0) -> 0
A33: Additional Chemical or Company Specific TLVs or OELs, if Applicable
B34: Other Chemical 1 | C34: Enter Values
B35: Other Chemical 2 | C35: Enter Values
B36: Other Chemical 3 | C36: Enter Values
B37: Other Chemical 4 | C37: Enter Values
A38: Calculations and Other Data
B39: Total Component (%) | E39: =SUM(E3:E32,E34:E37) -> 0
B40: Molecular Weight of Product
E42: mg/m3 | F42: ppm
B43: Calculated RCP OEL | E43: =1/SUM(F3:F37) ->  | F43: =E43*(24.45/E40) -> 
B44: ACGIH Rounded RCP OEL | E44: =IF(E43<12.5,E43,IF(E43<100,MROUND(E43,25),IF(E43<=600,MROUND(E43,50),IF(E43>600,MROUND(E43,200),FALSE)))) ->  | F44: =E44*(24.45/E40) -> 
A45: ACGIH Rounding Rules
B46: OEL < 100 mg/m3 | C46: Nearest 25
B47: OEL = 100 - 600 mg/m3 | C47: Nearest 50
B48: OEL > 600 mg/m3 | C48: Nearest 200

Sheet OEL and TLV Values
A1: Hydrocarbon Group | B1: Individual Constituents (if applicable) | C1: Referenced CAS # | D1: ACGIH TLV (mg/m3) | E1: German AGS (mg/m3) | F1: German MAK (mg/m3) | G1: SCOEL (mg/m3) | H1: HSPA Recommendation (mg/m3) | I1: Revised Recommendations (mg/m3)
A2: C5 - C6 Aliphatics Group Guidance Value | D2: 1500 | E2: 700 | H2: 1400 | I2: 1400
B3: Pentane, All Isomers | C3: 78-78-4; 109-66-0; 463-82-1 | D3: 2950 | F3: 3000 | G3: 3000
B4: Cyclopentane | C4: 287-92-3 | D4: 1720
B5: Hexane, isomers, excluding n-hexane | C5: 75-83-2; 75-29-8; 107-83-5; 96-14-0 | D5: 1760 | E5: 700 | F5: 1800
B6: Cyclohexane | C6: 110-82-7 | D6: 350 | E6: 700 | F6: 700 | G6: 700 | H6: 700 | I6: 350
B7: n-Hexane | C7: 110-54-3 | D7: 176 | E7: 180 | F7: 180 | G7: 72 | H7: 72 | I7: 176
A8: C7 - C8 Aliphatics Group Guidance Value | D8: 1500 | E8: 700 | H8: 1400 | I8: 1400
B9: Heptane, all isomers | C9: 142-82-5; 590-35-2; 565-59-3; 108-08-7; 591-76-4; 589-34-4 | D9: 1640 | E9: 700 | F9: 2100 | G9: 2085
B10: Methyl cyclohexane | C10: 108-87-2 | D10: 1610 | E10: 700 | F10: 810 | H10: 810 | I10: 1610
B11: Octane, all isomers | C11: 111-65-9 | D11: 1401 | E11: 700 | F11: 2400
A12: C9 - C15 Aliphatics Group Guidance Value | D12: 1200 | E12: 300 | H12: 1050 | I12: 1050
B13: n-Nonane | C13: 111-84-2 | D13: 1050 | E13: 300
B14: Decalin | C14: 91-17-8 | E14: 29 | F14: 29 | H14: 29
A15: C7 - C8 Aromatics Group Guidance Value | D15: 200
B16: Toluene | C16: 108-88-3 | D16: 75 | F16: 190 | G16: 192 | H16: 192 | I16: 75
B17: Xylene, all isomers | C17: 1330-20-7; 95-47-6; 108-38-3; 106-42-3 | D17: 434 | F17: 440 | G17: 221 | H17: 221 | I17: 434
B18: Ethyl benzene | C18: 100-41-4 | D18: 87 | F18: 88 | H18: 88 | I18: 87
A19: C9 - C15 Aromatics Group Guidance Value | D19: 100 | E19: 50 | H19: 100 | I19: 100
B20: Trimethyl benzene, all isomers | C20: 25551-13-7; 526-73-8; 95-63-6; 108-67-8 | D20: 123 | E20: 50 | F20: 100 | G20: 100
B21: Naphthalene | C21: 91-20-3 | D21: 52 | F21: 2 | H21: 52 | I21: 52
B22: Cumene | C22: 98-82-8 | D22: 246 | E22: 50 | F22: 50 | G22: 100
B23: 1- and 2 -methyl naphthalene | C23: 90-12-0; 91-57-6 | D23: 3 | H23: 52 | I23: 52
B24: Diethyl benzenes (AIHA WEEL) | C24: 25340-17-4 | D24: 28 | H24: 28 | I24: 28
B25: Tetralin | C25: 119-64-2
B26: n-butylbenzene | C26: 104-51-8
B27: Acenaphthene | C27: 83-32-9
B28: Acenaphthylene | C28: 208-96-8
B29: Biphenyl | C29: 92-52-4 | H29: 1.3 | I29: 1.3
B30: Indene | C30: 95-13-6 | H30: 24 | I30: 24
B31: Fluorene | C31: 86-73-7
A33: Equation | B33: =IF('Other (DO NOT MODIFY)'!C3=1,'OEL and TLV Values'!D3)+IF('Other (DO NOT MODIFY)'!C3=2,'OEL and TLV Values'!E3)+IF('Other (DO NOT MODIFY)'!C3=3,'OEL and TLV Values'!F3)+IF('Other (DO NOT MODIFY)'!C3=4,'OEL and TLV Values'!G3)+IF('Other (DO NOT MODIFY)'!C3=5,'OEL and TLV Values'!H3)+IF('Other (DO NOT MODIFY)'!C3=6,'OEL and TLV Values'!I3) -> 2950

Sheet Other (DO NOT MODIFY)
A1: Hydrocarbon Group | B1: Individual Constituents (if applicable) | C1: Selected TLV Source Value | D1: TLV or OEL Source
A2: C5 - C6 Aliphatics Group Guidance Value | C2: 1 | D2: ACGIH
B3: Pentane, All Isomers | C3: 1 | D3: German AGS
B4: Cyclopentane | C4: 1 | D4: German MAK
B5: Hexane, isomers, other than n-hexane | C5: 1 | D5: SCOEL
B6: Cyclohexane | C6: 1 | D6: HSPA Values
B7: n-Hexane | C7: 1 | D7: Revised Recommendations
A8: C7 - C8 Aliphatics Group Guidance Value | C8: 1 | D8: None
B9: Heptane, all isomers | C9: 1
B10: Methyl cyclohexane | C10: 1
B11: Octane, all isomers | C11: 1
A12: C9 - C15 Aliphatics Group Guidance Value | C12: 1
B13: n-Nonane | C13: 1
B14: Decalin | C14: 1
A15: C7 - C8 Aromatics Group Guidance Value | C15: 1
B16: Toluene | C16: 1
B17: Xylene, all isomers | C17: 1
B18: Ethyl benzene | C18: 1
A19: C9 - C15 Aromatics Group Guidance Value | C19: 1
B20: Trimethyl benzene, all isomers | C20: 1
B21: Naphthalene | C21: 1
B22: Cumene | C22: 1
B23: 1- and 2 -methyl naphthalene | C23: 1
B24: Diethyl benzenes (AIHA WEEL) | C24: 1
B25: Tetralin | C25: 1
B26: n-butylbenzene | C26: 1
B27: Acenaphthene | C27: 1
B28: Acenaphthylene | C28: 1
B29: Biphenyl | C29: 1
B30: Indene | C30: 1
B31: Fluorene | C31: 1
A32: Additional Values (Company Specific, if Applicable)
B33: Other Chemical 1
B34: Other Chemical 2
B35: Other Chemical 3
B36: Other Chemical 4

Sheet Raoult's law Calculator
I5: kPa
I7: kPa | Q7: =IF(OR(H9=0,H5=0),"",(((H9/100)*H5)*1000000)/101.3) ->  | R7: ppm
I9: % | Q9: =IF(OR(Q7=0,H7=0),"",(Q7*H11)/((H7*1000000)/101.3)) ->  | R9: mg/m3
I11: mg/m3

Sheet Revision Log
A1: Review Date | B1: Summary of Changes | C1: Name | D1: Affiliation
A2: 2018-06-07 | B2: German OEL values upated in calculations. ACGIH rounding guidance upated in calculations to round to the nearest 200 (previously 100) when OEL is great than 600. Revision Log added to spreadsheet | C2: Jennifer Foreman | D2: ExxonMobil Biomedical Sciences, Inc.
